bitfinex/quotes_BTCUSD_20230905
["timestamp","ask_amount","ask_price","bid_price","bid_amount"]
[1693884116754,0.02963698,25609.0,25608.0,0.94323887]
[1693884116954,0.02963698,25609.0,25608.0,1.25576087]
[1693884117159,0.02963698,25609.0,25608.0,1.25774087]
[1693884117365,0.02963698,25609.0,25608.0,1.25546087]
[1693884117594,0.02963698,25609.0,25608.0,1.25522087]
[1693884117826,0.02963698,25609.0,25608.0,1.61972614]
[1693884118028,0.02963698,25609.0,25608.0,1.63744614]
[1693884118230,0.03163698,25609.0,25608.0,1.69150814]
[1693884118455,0.03163698,25609.0,25608.0,1.76236814]
[1693884118704,0.03263698,25609.0,25608.0,1.76056814]
[1693884118915,0.03463698,25609.0,25608.0,1.78426814]
[1693884119120,0.03463698,25609.0,25608.0,1.78336814]
[1693884119323,0.03463698,25609.0,25608.0,1.71550814]
[1693884120119,0.03463698,25609.0,25608.0,1.79110814]
[1693884120545,0.03463698,25609.0,25608.0,1.79686814]
[1693884120752,0.03463698,25609.0,25608.0,1.82464814]
[1693884120957,0.03463698,25609.0,25608.0,2.00941327]
[1693884121162,0.03463698,25609.0,25608.0,2.01169327]
[1693884121377,0.03463698,25609.0,25608.0,2.01265327]
[1693884121599,0.005,25609.0,25608.0,2.01229327]
[1693884121828,0.002006,25609.0,25608.0,2.00941327]
[1693884122077,0.002006,25609.0,25608.0,2.13531327]
[1693884122279,0.002006,25609.0,25608.0,2.13519327]
[1693884122508,0.002006,25609.0,25608.0,2.26791327]
[1693884122741,0.002006,25609.0,25608.0,2.68713327]
[1693884122917,0.002006,25609.0,25608.0,2.68977327]
[1693884123151,0.002006,25609.0,25608.0,2.69937327]
[1693884123359,0.002006,25609.0,25608.0,2.80885327]
[1693884123566,0.002006,25609.0,25608.0,2.79409327]
[1693884123779,0.002006,25609.0,25608.0,2.79493327]
[1693884124015,0.002006,25609.0,25608.0,2.79805327]
[1693884124215,6e-06,25609.0,25608.0,2.77249327]
[1693884124419,0.09356495,25617.0,25614.0,0.008982]
[1693884124607,0.14034742,25618.0,25615.0,0.77929211]
[1693884124608,0.23391237,25618.0,25615.0,0.77929211]
[1693884125024,0.02943274,25616.0,25615.0,0.87006282]
[1693884125229,0.02943274,25616.0,25615.0,1.65454698]
[1693884125421,0.09356495,25618.0,25615.0,1.72234698]
[1693884125657,0.09356495,25618.0,25615.0,1.73116698]
[1693884125858,0.09356495,25618.0,25615.0,1.88721298]
[1693884126063,0.10156495,25618.0,25615.0,1.88773298]
[1693884126266,0.10156495,25618.0,25616.0,0.38664527]
[1693884126477,0.10156495,25618.0,25617.0,0.312292]
[1693884127293,0.09356495,25618.0,25617.0,0.312292]
[1693884127648,0.11756495,25618.0,25617.0,0.314292]
[1693884127851,0.11756495,25618.0,25617.0,0.23728159]
[1693884128050,0.13356495,25618.0,25617.0,0.315292]
[1693884128274,0.13356495,25618.0,25617.0,0.627584]
[1693884128477,0.04,25618.0,25617.0,0.627584]
[1693884129335,0.04,25618.0,25617.0,1.03422927]
[1693884129448,0.04,25618.0,25617.0,1.34652127]
[1693884129854,0.04,25618.0,25617.0,1.52277071]
[1693884130060,0.04,25618.0,25617.0,1.53923071]
[1693884130266,0.33076495,25621.0,25617.0,1.53411071]
[1693884130473,0.33076495,25621.0,25618.0,0.52054527]
[1693884130684,0.10458295,25622.0,25619.0,0.936804]
[1693884130896,0.09356495,25622.0,25619.0,0.936804]
[1693884131303,0.02941451,25621.0,25619.0,1.32344927]
[1693884131930,0.02941451,25621.0,25619.0,1.32444927]
[1693884132134,0.02941451,25621.0,25619.0,1.32344927]
[1693884132387,0.02941451,25621.0,25619.0,1.39082927]
[1693884132674,0.02941451,25621.0,25619.0,1.40335127]
[1693884132897,0.02941451,25621.0,25619.0,1.33243127]
[1693884133113,0.02941451,25621.0,25619.0,1.02016327]
[1693884133720,0.03041451,25621.0,25619.0,1.02016327]
[1693884134160,0.03841451,25621.0,25619.0,1.02116327]
[1693884137139,2.38025851,25621.0,25619.0,0.009982]
[1693884137959,2.53255851,25621.0,25619.0,0.009982]
[1693884140682,1.75193251,25621.0,25619.0,0.009982]
[1693884141218,1.74893851,25621.0,25619.0,0.009982]
[1693884142097,1.74594451,25621.0,25619.0,0.009982]
[1693884142693,1.74295051,25621.0,25619.0,0.009982]
[1693884142937,1.7513885,25621.0,25619.0,0.009982]
[1693884143118,1.7483945,25621.0,25619.0,0.009982]
[1693884147167,0.1871765,25621.0,25619.0,0.407648]
[1693884147599,0.1871765,25621.0,25619.0,0.88337043]
[1693884148824,0.1871765,25621.0,25620.0,0.18566609]
[1693884149026,0.1871765,25621.0,25620.0,0.81017809]
[1693884149666,0.1861765,25621.0,25620.0,0.81017809]
[1693884150045,0.1961765,25621.0,25620.0,0.81117809]
[1693884150185,0.1881765,25621.0,25620.0,0.81117809]
[1693884150592,0.2051765,25621.0,25620.0,0.81317809]
[1693884150799,0.2051765,25621.0,25620.0,0.003]
[1693884158771,0.2031765,25621.0,25620.0,0.003]
[1693884159177,0.2102082,25621.0,25620.0,0.003]
[1693884160397,0.30377315,25621.0,25620.0,0.003]
[1693884160831,2.64560015,25621.0,25620.0,0.003]
[1693884161033,2.88973051,25621.0,25620.0,0.003]
[1693884161442,2.93651298,25621.0,25620.0,0.003]
[1693884161645,3.02999119,25621.0,25620.0,0.003]
[1693884162285,2.93651298,25621.0,25620.0,0.003]
[1693884162523,3.12364288,25621.0,25620.0,0.003]
[1693884163666,3.67862601,25621.0,25620.0,0.003]
[1693884164505,3.49149611,25621.0,25620.0,0.003]
[1693884165447,3.25758374,25621.0,25620.0,0.003]
[1693884165646,3.49159146,25621.0,25620.0,0.003]
[1693884165844,3.34298374,25621.0,25620.0,0.003]
[1693884166995,3.33298374,25621.0,25620.0,0.002]
[1693884167169,3.31598374,25621.0,25617.0,0.008982]
[1693884167365,0.14041296,25618.0,25617.0,0.008982]
[1693884167565,1.70181496,25618.0,25617.0,0.008982]
[1693884168897,1.88903225,25618.0,25617.0,0.008982]
[1693884169137,1.89003225,25618.0,25617.0,0.017982]
[1693884169360,1.89103225,25618.0,25617.0,0.021982]
[1693884169634,1.70381496,25618.0,25617.0,0.013]
[1693884169928,2.53132029,25618.0,25617.0,0.013]
[1693884170408,1.75061929,25618.0,25617.0,0.013]
[1693884170664,1.89107,25618.0,25617.0,0.013]
[1693884171089,1.75061929,25618.0,25617.0,0.013]
[1693884171308,1.89107786,25618.0,25617.0,0.013]
[1693884172270,1.8910886,25618.0,25617.0,0.013]
[1693884173933,2.53132029,25618.0,25617.0,0.013]
[1693884174162,2.9927702,25618.0,25617.0,0.013]
[1693884174989,2.53132029,25618.0,25617.0,0.013]
[1693884175622,3.12497272,25618.0,25617.0,0.013]
[1693884175834,2.92196911,25618.0,25617.0,0.013]
[1693884176287,2.95268858,25618.0,25617.0,0.013]
[1693884176729,2.95168858,25618.0,25617.0,0.004]
[1693884176933,2.95168858,25618.0,25617.0,0.002]
[1693884176934,2.95068858,25618.0,25617.0,0.002]
[1693884177143,2.97568858,25618.0,25617.0,0.002]
[1693884177426,2.99968858,25618.0,25617.0,0.003]
[1693884177672,3.15348858,25618.0,25617.0,0.003]
[1693884177894,3.59243659,25618.0,25617.0,0.003]
[1693884178086,3.56743659,25618.0,25617.0,0.001]
[1693884178300,3.59243659,25618.0,25617.0,0.003]
[1693884178515,0.04,25614.0,25608.0,0.24439478]
[1693884178738,3.35682618,25613.0,25609.0,0.05568028]
[1693884178947,3.50502962,25613.0,25609.0,0.05568028]
[1693884179159,0.0854,25612.0,25609.0,0.05568028]
[1693884179369,2.342742,25611.0,25606.0,0.6950233]
[1693884179606,0.05433662,25610.0,25607.0,0.38664527]
[1693884179851,0.780975,25609.0,25606.0,0.6950233]
[1693884180055,1.61628662,25609.0,25608.0,0.022]
[1693884180266,1.56195,25609.0,25608.0,0.022]
[1693884180478,1.56195,25609.0,25606.0,1.16769827]
[1693884180789,1.56195,25609.0,25607.0,0.021]
[1693884180990,1.56495,25609.0,25607.0,0.021]
[1693884181457,1.56495,25609.0,25606.0,0.468632]
[1693884181659,1.56495,25609.0,25606.0,0.490632]
[1693884181660,1.56695,25609.0,25606.0,0.490632]
[1693884181839,1.56395,25609.0,25606.0,0.803058]
[1693884182037,1.56595,25609.0,25606.0,0.803058]
[1693884182892,0.784975,25609.0,25606.0,0.803058]
[1693884183101,0.004,25609.0,25607.0,0.60073601]
[1693884183302,0.820866,25613.0,25608.0,0.710204]
[1693884183515,0.43281014,25615.0,25612.0,0.0854]
[1693884183516,0.33984575,25615.0,25612.0,0.0854]
[1693884183767,0.09354575,25616.0,25613.0,0.77934011]
[1693884183968,0.27386438,25617.0,25613.0,1.15930111]
[1693884184172,1.05459638,25617.0,25614.0,0.0854]
[1693884184380,1.05459638,25617.0,25615.0,0.15465811]
[1693884184584,0.91427975,25617.0,25614.0,0.710054]
[1693884184787,0.87427975,25617.0,25614.0,0.710054]
[1693884184998,0.09354575,25617.0,25614.0,0.710054]
[1693884185199,0.09954575,25617.0,25614.0,0.779774]
[1693884185409,0.09954575,25617.0,25614.0,0.780074]
[1693884185410,0.88027675,25617.0,25614.0,0.780074]
[1693884185609,0.88027675,25617.0,25614.0,0.710054]
[1693884186024,0.88027675,25617.0,25614.0,0.82126086]
[1693884186231,0.88827675,25617.0,25614.0,0.97843786]
[1693884186434,0.88827675,25617.0,25614.0,0.90141843]
[1693884186635,0.87427675,25617.0,25614.0,0.90041843]
[1693884186853,0.10854575,25617.0,25614.0,0.90141843]
[1693884187057,0.10854575,25617.0,25615.0,0.23586685]
[1693884187264,1.67498275,25618.0,25615.0,0.54817985]
[1693884187438,0.89426375,25618.0,25615.0,0.54817985]
[1693884187641,0.006,25617.0,25615.0,0.54817985]
[1693884188056,1.81529738,25618.0,25615.0,0.54817985]
[1693884188258,0.015,25617.0,25615.0,0.54917985]
[1693884188761,0.015,25617.0,25615.0,0.23686685]
[1693884189082,0.015,25617.0,25615.0,0.001]
[1693884189234,0.023,25617.0,25615.0,0.002]
[1693884189441,0.023,25617.0,25615.0,0.314315]
[1693884191236,0.03023975,25616.0,25615.0,0.314315]
[1693884192078,0.03023975,25616.0,25615.0,0.002]
[1693884192284,0.81100175,25616.0,25615.0,0.001]
[1693884192705,0.81900175,25616.0,25615.0,0.002]
[1693884193334,0.81900175,25616.0,25615.0,0.001]
[1693884193581,0.83400175,25616.0,25615.0,0.002]
[1693884196393,2.39552575,25616.0,25615.0,0.002]
[1693884197154,2.56112575,25616.0,25615.0,0.002]
[1693884197955,1.78036375,25616.0,25615.0,0.002]
[1693884198962,2.56112575,25616.0,25615.0,0.002]
[1693884199897,2.7800715,25616.0,25615.0,0.002]
[1693884200148,4.65338843,25616.0,25615.0,0.002]
[1693884200372,5.02137174,25616.0,25615.0,0.002]
[1693884200919,4.77250735,25616.0,25615.0,0.001]
[1693884201334,5.02030007,25616.0,25615.0,0.001]
[1693884201548,5.00630007,25616.0,25615.0,0.001]
[1693884201759,0.04,25614.0,25608.0,0.156212]
[1693884201963,0.0854,25612.0,25608.0,0.156212]
[1693884202142,1.61617662,25611.0,25608.0,0.156212]
[1693884202352,2.39709662,25611.0,25608.0,0.156212]
[1693884202549,2.39709662,25611.0,25606.0,0.312415]
[1693884202777,0.05433662,25610.0,25606.0,0.312415]
[1693884203007,0.05433662,25610.0,25606.0,0.36655548]
[1693884203008,0.780981,25609.0,25606.0,0.36655548]
[1693884203220,0.780981,25609.0,25606.0,0.67898148]
[1693884203823,0.780981,25609.0,25606.0,0.67998148]
[1693884204040,0.780981,25609.0,25608.0,0.01]
[1693884204449,0.783981,25609.0,25608.0,0.01]
[1693884204652,0.003,25609.0,25608.0,0.01]
[1693884205090,0.003,25609.0,25608.0,1.188819]
[1693884205295,0.001,25611.0,25608.0,1.59546427]
[1693884205728,1.601751,25613.0,25608.0,1.58546427]
[1693884205935,0.820872,25613.0,25609.0,0.47204527]
[1693884206146,0.820872,25613.0,25610.0,0.312375]
[1693884206348,0.03015179,25612.0,25610.0,0.312375]
[1693884206548,0.03015179,25612.0,25610.0,0.611684]
[1693884206815,0.001,25611.0,25610.0,0.611684]
[1693884207257,1.606742,25613.0,25610.0,0.611684]
[1693884207453,1.601742,25613.0,25610.0,0.611684]
[1693884207628,0.007,25612.0,25610.0,0.612684]
[1693884207858,0.021,25612.0,25610.0,0.300309]
[1693884208062,0.007,25612.0,25610.0,0.300309]
[1693884208260,0.787885,25612.0,25610.0,0.001]
[1693884208674,2.514053,25612.0,25610.0,0.001]
[1693884208885,2.507053,25612.0,25607.0,0.312407]
[1693884209104,2.507053,25612.0,25610.0,0.001]
[1693884209105,0.05433662,25611.0,25610.0,0.001]
[1693884209325,1.561828,25611.0,25610.0,0.001]
[1693884209516,1.806828,25611.0,25610.0,0.001]
[1693884210096,1.806828,25611.0,25607.0,0.8889043]
[1693884210298,2.64207862,25611.0,25610.0,0.001]
[1693884210480,2.587742,25611.0,25610.0,0.001]
[1693884210680,2.601742,25611.0,25610.0,0.001]
[1693884210890,2.587742,25611.0,25610.0,0.001]
[1693884211422,2.589742,25611.0,25610.0,0.001]
[1693884211653,2.587742,25611.0,25610.0,0.001]
[1693884212346,2.587742,25611.0,25607.0,0.781034]
[1693884212472,2.64907862,25611.0,25610.0,0.001]
[1693884212672,2.680142,25611.0,25610.0,0.001]
[1693884213289,2.694142,25611.0,25610.0,0.001]
[1693884215482,2.694142,25611.0,25610.0,0.021]
[1693884220852,2.608742,25611.0,25610.0,0.021]
[1693884221396,2.63838199,25611.0,25610.0,0.021]
[1693884224388,3.15907052,25611.0,25610.0,0.001]
[1693884226518,2.85729232,25611.0,25610.0,0.001]
[1693884226918,3.01109232,25611.0,25610.0,0.001]
[1693884229971,2.91758199,25611.0,25610.0,0.001]
[1693884230236,3.01109232,25611.0,25610.0,0.001]
[1693884230625,2.91758199,25611.0,25610.0,0.001]
[1693884231169,3.65148523,25611.0,25610.0,0.001]
[1693884231458,4.37236491,25611.0,25610.0,0.001]
[1693884231662,4.13857219,25611.0,25610.0,0.001]
[1693884232175,4.13157219,25611.0,25605.0,0.02]
[1693884232378,0.0854,25606.0,25604.0,0.04182282]
[1693884232585,1.647532,25606.0,25604.0,0.02182282]
[1693884232749,1.647532,25606.0,25604.0,0.04182282]
[1693884232980,1.647532,25606.0,25604.0,0.02182282]
[1693884232981,2.423198,25606.0,25604.0,0.02182282]
[1693884233257,2.81405985,25606.0,25604.0,0.02182282]
[1693884233462,2.82705985,25606.0,25604.0,0.02182282]
[1693884233864,2.81405985,25606.0,25604.0,0.02182282]
[1693884234065,3.08438801,25606.0,25605.0,0.002]
[1693884234469,3.06038801,25606.0,25604.0,0.02182282]
[1693884234644,3.08438801,25606.0,25604.0,0.02182282]
[1693884234850,3.10838801,25606.0,25604.0,0.02382282]
[1693884235988,3.08438801,25606.0,25604.0,0.02382282]
[1693884236330,3.10838801,25606.0,25604.0,0.02382282]
[1693884236533,2.99084327,25606.0,25604.0,0.02382282]
[1693884236950,3.01484327,25606.0,25604.0,0.02382282]
[1693884237363,0.24093563,25605.0,25604.0,0.02382282]
[1693884237575,2.66962663,25605.0,25604.0,0.02382282]
[1693884237775,3.01200466,25605.0,25604.0,0.02382282]
[1693884238269,2.91845992,25605.0,25604.0,0.02182282]
[1693884238470,2.91845992,25605.0,25604.0,0.02382282]
[1693884238471,2.94245992,25605.0,25604.0,0.02382282]
[1693884239318,2.96645992,25605.0,25604.0,0.02382282]
[1693884239523,3.32910519,25605.0,25604.0,0.02382282]
[1693884239724,3.30510519,25605.0,25604.0,0.02182282]
[1693884239955,3.32910519,25605.0,25604.0,0.02182282]
[1693884240168,3.33310519,25605.0,25604.0,0.02382282]
[1693884240391,3.35310519,25605.0,25604.0,0.02382282]
[1693884240577,3.32910519,25605.0,25604.0,0.02182282]
[1693884241022,3.32910519,25605.0,25604.0,0.02382282]
[1693884241023,2.57981465,25605.0,25604.0,0.02382282]
[1693884243356,2.55981465,25605.0,25604.0,0.02382282]
[1693884253234,2.47441465,25605.0,25604.0,0.02382282]
[1693884253634,2.43441465,25605.0,25604.0,0.02382282]
[1693884254228,0.42095135,25609.0,25606.0,0.02]
[1693884254229,0.87451974,25609.0,25606.0,0.02]
[1693884254400,0.780975,25609.0,25608.0,0.1054]
[1693884254613,0.780938,25611.0,25609.0,0.02]
[1693884254817,2.342742,25611.0,25609.0,0.26005811]
[1693884255019,2.342742,25611.0,25609.0,0.1054]
[1693884255869,2.342742,25611.0,25609.0,0.02]
[1693884256081,2.366742,25611.0,25609.0,0.022]
[1693884256691,2.56568674,25611.0,25609.0,0.024]
[1693884256892,2.79432945,25611.0,25609.0,0.004]
[1693884257117,2.56568674,25611.0,25609.0,0.004]
[1693884257325,0.0854,25610.0,25609.0,0.004]
[1693884257526,2.428232,25610.0,25609.0,0.004]
[1693884258361,2.342832,25610.0,25609.0,0.002]
[1693884258578,2.342832,25610.0,25604.0,0.17670084]
[1693884258782,2.366832,25610.0,25609.0,0.002]
[1693884259095,2.388832,25610.0,25609.0,0.004]
[1693884259528,2.342832,25610.0,25605.0,0.42991729]
[1693884259729,2.343832,25610.0,25605.0,0.38664527]
[1693884259935,2.342832,25610.0,25605.0,0.38664527]
[1693884260068,0.38664527,25609.0,25605.0,0.38664527]
[1693884260269,2.343036,25608.0,25605.0,0.38664527]
[1693884261463,2.428436,25608.0,25602.0,0.261338]
[1693884261664,0.0854,25607.0,25602.0,0.019695]
[1693884261890,2.343246,25606.0,25602.0,0.019695]
[1693884262095,3.124328,25606.0,25605.0,0.005]
[1693884262505,3.124328,25606.0,25602.0,0.019695]
[1693884262726,3.124328,25606.0,25602.0,0.10582553]
[1693884262890,3.126328,25606.0,25602.0,0.068695]
[1693884263344,3.124328,25606.0,25602.0,0.019695]
[1693884263546,3.127328,25606.0,25602.0,0.044695]
[1693884263791,3.127328,25606.0,25602.0,0.029695]
[1693884264330,0.0854,25604.0,25602.0,0.029695]
[1693884264545,2.343474,25603.0,25602.0,0.029695]
[1693884264947,2.343474,25603.0,25602.0,0.005695]
[1693884265571,1.562316,25603.0,25602.0,0.005695]
[1693884265771,0.781158,25603.0,25602.0,0.004695]
[1693884266209,0.81081265,25603.0,25602.0,0.005695]
[1693884266575,0.81381265,25603.0,25602.0,0.005695]
[1693884268817,0.03265465,25603.0,25602.0,0.005695]
[1693884273363,0.03265465,25603.0,25602.0,0.35525902]
[1693884273604,0.03265465,25603.0,25602.0,0.66773402]
[1693884274940,0.03265465,25603.0,25602.0,0.005695]
[1693884278203,0.03265465,25603.0,25602.0,0.13943468]
[1693884278406,0.03265465,25603.0,25602.0,1.22840357]
[1693884278619,0.03265465,25603.0,25602.0,1.88941857]
[1693884278825,0.03265465,25603.0,25602.0,1.76611889]
[1693884279028,0.013,25603.0,25602.0,1.78015889]
[1693884279242,0.013,25603.0,25602.0,1.82933889]
[1693884279534,0.013,25603.0,25602.0,1.84573889]
[1693884279745,0.013,25603.0,25602.0,1.83697889]
[1693884279746,0.01,25603.0,25602.0,1.83697889]
[1693884279939,0.01,25603.0,25602.0,1.83739889]
[1693884280151,0.01,25603.0,25602.0,1.83733889]
[1693884280355,0.01,25603.0,25602.0,1.83931889]
[1693884280559,0.01,25603.0,25602.0,1.83925889]
[1693884280764,0.01,25603.0,25602.0,1.83919889]
[1693884280960,0.01,25603.0,25602.0,1.83883889]
[1693884281174,0.012,25603.0,25602.0,1.66855889]
[1693884281374,0.002,25603.0,25602.0,1.66491889]
[1693884281588,1.01481285,25610.0,25603.0,0.04]
[1693884281797,1.01481285,25610.0,25607.0,0.0854]
[1693884281798,1.79577685,25610.0,25607.0,0.0854]
[1693884282003,1.79577685,25610.0,25607.0,0.24005811]
[1693884282004,1.94837685,25610.0,25607.0,0.24005811]
[1693884282209,0.01822737,25609.0,25607.0,0.24005811]
[1693884282419,0.79920737,25609.0,25607.0,0.0854]
[1693884283048,0.79920737,25609.0,25607.0,0.0874]
[1693884283253,0.79920737,25609.0,25605.0,0.0854]
[1693884283457,0.79920737,25609.0,25606.0,0.38664527]
[1693884283897,0.95180737,25609.0,25606.0,0.38664527]
[1693884284518,0.98280737,25609.0,25607.0,0.003]
[1693884284746,0.96380737,25609.0,25607.0,0.001]
[1693884284965,0.95180737,25609.0,25606.0,0.38664527]
[1693884285177,0.95480737,25609.0,25606.0,0.38664527]
[1693884285602,0.96180737,25609.0,25606.0,0.38764527]
[1693884285813,0.02822737,25609.0,25607.0,0.18454206]
[1693884286020,0.04022737,25609.0,25607.0,0.27094206]
[1693884287263,0.02822737,25609.0,25607.0,0.26994206]
[1693884287465,0.02122737,25609.0,25607.0,0.26994206]
[1693884287878,0.03722737,25609.0,25607.0,0.27194206]
[1693884288289,0.03722737,25609.0,25607.0,0.27294206]
[1693884288290,0.04922737,25609.0,25607.0,0.27294206]
[1693884288501,0.04922737,25609.0,25607.0,0.18754206]
[1693884288678,0.04922737,25609.0,25607.0,0.003]
[1693884289946,0.04922737,25609.0,25608.0,0.38664527]
[1693884290157,0.04922737,25609.0,25608.0,0.47204527]
[1693884290782,0.03722737,25609.0,25608.0,0.47204527]
[1693884291196,0.03922737,25609.0,25608.0,0.47404527]
[1693884291405,0.03922737,25609.0,25608.0,0.47604527]
[1693884291406,0.06322737,25609.0,25608.0,0.47604527]
[1693884292018,0.06322737,25609.0,25608.0,0.39064527]
[1693884292633,0.84420237,25609.0,25608.0,0.004]
[1693884293252,1.62517737,25609.0,25608.0,0.004]
[1693884293608,1.62517737,25609.0,25605.0,0.3107289]
[1693884293822,1.62517737,25609.0,25606.0,0.51618175]
[1693884294425,1.75517737,25609.0,25606.0,0.51618175]
[1693884294627,1.73117737,25609.0,25606.0,0.51618175]
[1693884295157,1.74117737,25609.0,25606.0,0.51718175]
[1693884295357,1.74117737,25609.0,25606.0,0.001]
[1693884296307,0.17922737,25609.0,25607.0,0.2943187]
[1693884296523,0.18222737,25609.0,25607.0,0.2943187]
[1693884297169,0.17922737,25609.0,25607.0,0.2943187]
[1693884297454,0.18122737,25609.0,25607.0,0.2953187]
[1693884297624,0.20022737,25609.0,25607.0,0.0884]
[1693884298242,0.20022737,25609.0,25607.0,0.47504527]
[1693884299732,0.20022737,25609.0,25607.0,0.003]
[1693884299733,1.76217937,25609.0,25607.0,0.003]
[1693884301135,1.76217937,25609.0,25607.0,0.0884]
[1693884301320,0.20022737,25609.0,25607.0,0.0884]
[1693884301530,0.20022737,25609.0,25607.0,0.39007146]
[1693884301857,0.20022737,25609.0,25608.0,0.47204527]
[1693884302673,0.18822737,25609.0,25608.0,0.47204527]
[1693884302876,0.18822737,25609.0,25608.0,0.56823171]
[1693884303078,0.05822737,25609.0,25608.0,1.67095771]
[1693884303286,0.05822737,25609.0,25608.0,2.07663755]
[1693884303496,0.05822737,25609.0,25608.0,2.06499755]
[1693884303740,0.021,25609.0,25608.0,2.06271755]
[1693884303952,0.04170312,25609.0,25608.0,2.06235755]
[1693884304164,0.01770312,25609.0,25608.0,2.06389755]
[1693884304370,0.001,25609.0,25608.0,2.00811755]
[1693884304578,0.01964831,25609.0,25608.0,1.93071755]
[1693884305564,0.01864831,25609.0,25608.0,1.91671755]
[1693884306132,0.01964831,25609.0,25608.0,1.93071755]
[1693884310255,0.01964831,25609.0,25608.0,1.61831555]
[1693884313673,0.01964831,25609.0,25608.0,1.93071755]
[1693884313918,0.01964831,25609.0,25608.0,2.02145755]
[1693884314090,0.01964831,25609.0,25608.0,1.06221155]
[1693884314289,0.01964831,25609.0,25608.0,1.30591355]
[1693884315367,0.01964831,25609.0,25608.0,1.61831555]
[1693884319588,0.01964831,25609.0,25608.0,0.49404527]
[1693884328327,0.80062331,25609.0,25608.0,0.022]
[1693884328532,1.58159831,25609.0,25608.0,0.022]
[1693884328973,2.36257331,25609.0,25608.0,0.022]
[1693884329397,1.58159831,25609.0,25608.0,0.022]
[1693884329604,0.79962331,25609.0,25608.0,0.008]
[1693884329847,0.79862331,25609.0,25607.0,0.0854]
[1693884330049,0.01864831,25609.0,25608.0,0.008]
[1693884330471,0.01764831,25609.0,25607.0,0.0854]
[1693884330886,0.17354831,25609.0,25607.0,0.0854]
[1693884331090,0.17354831,25609.0,25608.0,0.56341576]
[1693884331270,0.02764831,25609.0,25608.0,1.56726176]
[1693884331499,0.02764831,25609.0,25608.0,1.57110176]
[1693884331704,0.03064831,25609.0,25608.0,1.78820898]
[1693884331833,0.03064831,25609.0,25608.0,1.78700898]
[1693884332033,0.03064831,25609.0,25608.0,1.78682898]
[1693884332236,0.03064831,25609.0,25608.0,1.78706898]
[1693884332463,0.0431448,25609.0,25608.0,1.78612898]
[1693884332663,0.004,25609.0,25608.0,1.78558898]
[1693884332860,0.004,25609.0,25608.0,1.78528898]
[1693884333063,0.003,25609.0,25608.0,1.78558898]
[1693884333260,0.013,25609.0,25608.0,1.78370898]
[1693884333462,0.013,25609.0,25608.0,1.71776898]
[1693884333662,0.013,25609.0,25608.0,1.79138898]
[1693884333986,0.013,25609.0,25608.0,1.78634898]
[1693884334228,0.013,25609.0,25608.0,1.98680898]
[1693884334453,0.013,25609.0,25608.0,1.98686898]
[1693884334627,0.013,25609.0,25608.0,1.98644898]
[1693884334788,0.013,25609.0,25608.0,1.98686898]
[1693884334990,0.013,25609.0,25608.0,1.98680898]
[1693884335374,0.013,25609.0,25608.0,2.14685849]
[1693884335515,0.013,25609.0,25608.0,2.84640049]
[1693884335717,0.013,25609.0,25608.0,2.84280049]
[1693884336066,0.25244474,25614.0,25610.0,0.04]
[1693884336266,0.25244474,25614.0,25611.0,1.32373427]
[1693884336495,0.0400768,25613.0,25612.0,0.36848423]
[1693884336705,0.0400768,25613.0,25612.0,1.4652355]
[1693884338494,0.0400768,25613.0,25612.0,1.7775885]
[1693884338919,0.0400768,25613.0,25612.0,1.70226202]
[1693884338920,0.0410768,25613.0,25612.0,1.70226202]
[1693884339164,0.0410768,25613.0,25612.0,1.76528411]
[1693884339574,0.0420768,25613.0,25612.0,1.77328411]
[1693884340765,0.0420768,25613.0,25612.0,1.57783789]
[1693884340981,0.0420768,25613.0,25612.0,2.02101427]
[1693884341202,0.0420768,25613.0,25612.0,2.04563427]
[1693884341423,0.002,25613.0,25612.0,2.04731427]
[1693884341638,0.002,25613.0,25612.0,2.04515427]
[1693884341862,0.002,25613.0,25612.0,2.28958089]
[1693884341863,0.04204128,25613.0,25612.0,2.28958089]
[1693884342066,0.49394474,25618.0,25613.0,0.06]
[1693884342275,0.49394474,25618.0,25617.0,0.0854]
[1693884342276,0.24974474,25618.0,25617.0,0.0854]
[1693884342486,0.14031711,25619.0,25617.0,0.0854]
[1693884342487,0.23386185,25619.0,25617.0,1.25128738]
[1693884342698,0.09354474,25619.0,25618.0,0.53983201]
[1693884342933,0.09354474,25619.0,25618.0,1.56207201]
[1693884343138,0.24600521,25620.0,25618.0,1.56207201]
[1693884343344,0.24600521,25620.0,25619.0,0.0854]
[1693884343553,0.40570521,25620.0,25619.0,1.47180975]
[1693884343755,0.40570521,25620.0,25619.0,1.15954175]
[1693884343966,0.26541176,25620.0,25619.0,1.15954175]
[1693884344205,0.2532684,25620.0,25619.0,1.15954175]
[1693884344620,0.2562684,25620.0,25619.0,1.15954175]
[1693884344820,0.2562684,25620.0,25619.0,1.00725694]
[1693884345021,0.1627,25620.0,25619.0,1.00725694]
[1693884345653,0.1627,25620.0,25619.0,1.40492494]
[1693884347112,0.1627,25620.0,25619.0,1.46239602]
[1693884348140,0.003,25620.0,25619.0,1.46239602]
[1693884348690,0.51261751,25622.0,25620.0,0.26443648]
[1693884348888,0.51261751,25622.0,25621.0,0.54941889]
[1693884349944,0.5387858,25622.0,25621.0,0.86166189]
[1693884350117,0.5437858,25622.0,25621.0,0.86166189]
[1693884350517,0.5637858,25622.0,25621.0,1.25591697]
[1693884350735,0.2230174,25622.0,25621.0,1.76330997]
[1693884350941,0.2340174,25622.0,25621.0,1.76430997]
[1693884352851,0.0697174,25622.0,25621.0,1.76430997]
[1693884353752,0.0587174,25622.0,25621.0,1.76330997]
[1693884353965,0.0597174,25622.0,25621.0,1.77530997]
[1693884354178,0.0397174,25622.0,25621.0,1.77330997]
[1693884354594,0.0387174,25622.0,25621.0,1.76130997]
[1693884354797,0.0397174,25622.0,25621.0,1.77330997]
[1693884355356,0.0407174,25622.0,25621.0,1.77930997]
[1693884356170,0.0407174,25622.0,25621.0,1.81765789]
[1693884356397,0.0407174,25622.0,25621.0,2.33067316]
[1693884356726,0.0407174,25622.0,25621.0,2.33097316]
[1693884356931,0.0407174,25622.0,25621.0,2.33121316]
[1693884357139,0.0407174,25622.0,25621.0,2.33091316]
[1693884357339,0.0407174,25622.0,25621.0,2.33415316]
[1693884357551,0.0407174,25622.0,25621.0,2.32845316]